Cogmind - Beta 13 @@@ ROGUE MODE // 2024.04.04 @ 21:54:45 Player: garza Result: Destroyed by D-53 Grenadier with Mini Grenade Launcher Performance ------------- Evolutions (0) 0 Regions Visited (2) 400 Robots Destroyed (8) 40 Value Destroyed (71) 71 Prototype IDs (0) 0 Alien Tech Used (0) 0 Bonus (-3) -3 TOTAL SCORE: 508 Bonus ------- Friendly Fire -3 Cogmind --------- Core Integrity 0/250 Matter 260/300 Energy 85/100 System Corruption 0% Temperature Cool (0) Movement Core (700) Ox13 Location -10/Mines Parts ------- > --- POWER (1) -------- (None) > --- PROPULSION (2) --- (None) > --- UTILITY (2) ------ High-capacity Storage Unit > --- WEAPON (2) ------- (None) > --- INVENTORY (20) --- Light Ion Engine Wheel Compact Wheel Structural Scanner Visual Processing Unit Improved Terrain Scanner Medium Laser Spread Laser Spread Laser Spread Laser Assault Rifle Peak State ------------ > --- POWER ------------ Light Ion Engine > --- PROPULSION ------- Compact Wheel Compact Wheel > --- UTILITY ---------- Small Storage Unit Improved Terrain Scanner > --- WEAPON ----------- Medium Laser Assault Rifle > --- INVENTORY -------- Light Ion Engine Compact Wheel EM Pulse Gun [Rating: 9] Favorites ----------- Power Light Ion Engine Engine Light Ion Engine Propulsion Compact Wheel Wheel Compact Wheel Utility Seismic Detector Device Seismic Detector Storage High-capacity Storage Unit Weapon Medium Laser Energy Gun Medium Laser Ballistic Gun Assault Rifle Launcher Grenade Launcher Build | -11 -10 -10 ------- Run | Yrd Mat Min Slots Evolved . | . . . Power . | . . . Propulsion . | . . . Utility . | . . . Weapon . | . . . Parts Attached 13 | 8 2 3 Power 1 | 1 . . Engine 1 | 1 . . Core . | . . . Reactor . | . . . Propulsion 3 | 2 . 1 Treads . | . . . Leg . | . . . Wheel 3 | 2 . 1 Hover . | . . . Flight . | . . . Utility 4 | 3 1 . Device 2 | 2 . . Storage 2 | 1 1 . Processor . | . . . Hackware . | . . . Protection . | . . . Artifact . | . . . Weapon 5 | 2 1 2 Energy Gun 3 | 1 . 2 Energy Cannon . | . . . Ballistic Gun 1 | 1 . . Ballistic Cannon . | . . . Launcher 1 | . 1 . Special Weapon . | . . . Impact Weapon . | . . . Slashing Weapon . | . . . Piercing Weapon . | . . . Special Melee Weapon . | . . . Unidentified Prototypes . | . . . Parts Lost 8 | . . 8 Power 1 | . . 1 Propulsion 3 | . . 3 Utility 1 | . . 1 Weapon 3 | . . 3 Highest Loss Streak 8 | . . 8 To Critical Strikes . | . . . Average Slot Usage (%) 96 | . 100 85 Engine 13 | . 14 11 Wheel 26 | . 28 23 Device 13 | . 14 11 Storage 14 | . 14 14 Energy Gun 13 | . 14 11 Ballistic Gun 1 | . 2 . Launcher 11 | . 12 11 Naked Turns . | . . . Heaviest Build 50 | 13 49 50 Greatest Support 32 | 32 32 32 Greatest Overweight (x) 13 | . 1 13 Average Overweight (x) . | . . 1 Largest Inventory Capacity 20 | 8 20 20 Average Capacity 14 | 7 17 20 Most Carried 13 | 6 13 13 Average Carried 7 | 2 8 12 Final Capacity 20 | 8 20 20 Final Carried 13 | 6 13 11 Class Distribution -------------------- 100% | Mutant Dominant Class ---------------- Mutant | -10/Materials Mutant | -10/Mines Resources | -11 -10 -10 ----------- Run | Yrd Mat Min Matter Collected 321 | 301 20 . Remotely . | . . . Salvage Created 285 | 160 59 66 Parts 16 | 11 2 3 Haulers Intercepted . | . . . Recyclers Shooed 2 | . . 2 Parts Field Recycled . | . . . Retrieved Matter . | . . . Parts Self-Destructed . | . . . Prevented . | . . . Kills | -11 -10 -10 ------- Run | Yrd Mat Min Combat Hostiles Destroyed . | . . . Classes Destroyed 3 | 2 1 . Tunneler 3 | 3 . . Recycler 3 | 1 . 2 Watcher 2 | . 2 . Best Kill Streak 4 | 4 2 2 Combat Bots Only . | . . . Max Kills in Single Turn 1 | 1 1 1 Gunslinging . | . . . Exploded . | . . . Melee . | . . . Uniques/NPCs Destroyed . | . . . Combat | -11 -10 -10 -------- Run | Yrd Mat Min Hostile Shots Fired 12 | . . 12 Missed . | . . . Damage Taken 634 | . . 634 Core 258 | . . 258 Absorbed by Shields . | . . . Core Remaining (%) 100 | 100 . . Volleys Fired 17 | 7 3 7 Largest 2 | 2 1 1 Hottest 70 | 70 50 40 Shots Fired 24 | 14 3 7 Gun 19 | 14 3 2 Cannon . | . . . Launcher 5 | . . 5 Special . | . . . Kinetic 7 | 7 . . Thermal 10 | 7 3 . Explosive 5 | . . 5 Electromagnetic 2 | . . 2 Robot Hit Streak 12 | 11 12 3 Robot Miss Streak 1 | . 1 1 Penetration Max . | . . . Secondary Targets . | . . . Shots Hit Robots 18 | 11 2 5 Core Hits 21 | 4 2 15 Critical Kills . | . . . Critical Parts Destroyed . | . . . Critical Strikes . | . . . Melee Attacks . | . . . Impact . | . . . Slashing . | . . . Piercing . | . . . Sneak Attacks . | . . . Combat Hostiles . | . . . Follow-up Attacks . | . . . Damage Inflicted 378 | 140 25 213 Guns 177 | 140 25 12 Cannons . | . . . Explosions 201 | . . 201 Melee . | . . . Ramming . | . . . Kinetic 53 | 53 . . Thermal 112 | 87 25 . Explosive 201 | . . 201 Electromagnetic 12 | . . 12 Impact . | . . . Slashing . | . . . Piercing . | . . . Highest Corruption . | . . . Average Corruption . | . . . Corruption Purged . | . . . Corruption Blocked . | . . . Overload Shots . | . . . Overflow Damage 1 | . . 1 Projectiles . | . . . Explosions 1 | . . 1 Melee . | . . . Knockbacks . | . . . Impact . | . . . Kinetic . | . . . Secondary . | . . . Self-Inflicted Damage 7 | . . 7 Shots 1 | . . 1 Rammed . | . . . Targets Rammed . | . . . Kicked . | . . . Crushed . | . . . Highest Temperature 36 | 36 30 . Average Temperature 14 | 13 16 . Received Heat Transfer . | . . . Siege Activations . | . . . Robots Corrupted . | . . . Combat Hostiles . | . . . Parts Fried . | . . . Impact Corruptions . | . . . Robots Melted . | . . . Combat Hostiles . | . . . Parts Melted 1 | 1 . . Heat Transferred 333 | 259 74 . Parts Sabotaged . | . . . Parts Stolen . | . . . Parts Stripped . | . . . Power Chain Reactions . | . . . Alert | -11 -10 -10 ------- Run | Yrd Mat Min Peak Influence 27 | 20 27 10 Initial 13 | . 13 10 Average 14 | 8 18 7 Maximum Alert Level . | . . . Low Security (%) 100 | 100 100 100 Level 1 . | . . . Level 2 . | . . . Level 3 . | . . . Level 4 . | . . . Level 5 . | . . . High Security . | . . . Max Security . | . . . Squads Dispatched . | . . . Investigation . | . . . Extermination . | . . . Reinforcement . | . . . Assault . | . . . Garrison . | . . . Intercept . | . . . Searches Triggered . | . . . Construction Impeded . | . . . Haulers Reinforced . | . . . Active Scanning Responses . | . . . Cargo Convoy Interrupts . | . . . Stealth | -11 -10 -10 --------- Run | Yrd Mat Min Distress Signals . | . . . Communications Jammed . | . . . Distress Signals . | . . . Times Spotted 5 | . 2 3 Peak Tracking Total 3 | . 1 3 Tactical Retreats . | . . . Traps | -11 -10 -10 ------- Run | Yrd Mat Min Traps Triggered . | . . . Indirectly . | . . . Trap Hack Attempts . | . . . Triggered . | . . . Disarmed . | . . . Reprogrammed . | . . . Reused . | . . . Traps Extracted . | . . . Installed . | . . . Triggered . | . . . Machines | -11 -10 -10 ---------- Run | Yrd Mat Min Machines Disabled . | . . . Max in Single Turn . | . . . Machines Repaired . | . . . Machines Dismantled . | . . . Machines Sabotaged . | . . . Overloaded Fab Kills . | . . . Hacking | -11 -10 -10 --------- Run | Yrd Mat Min Machines Accessed . | . . . Terminals . | . . . Fabricators . | . . . Repair Stations . | . . . Recycling Units . | . . . Scanalyzers . | . . . Garrison Access . | . . . Total Hacks . | . . . Successful . | . . . Failed . | . . . Catastrophic . | . . . Database Lockouts . | . . . Manual . | . . . Terminals . | . . . Fabricators . | . . . Repair Stations . | . . . Recycling Units . | . . . Scanalyzers . | . . . Garrison Access . | . . . Terminal Hacks . | . . . Fabricator Hacks . | . . . Repair Station Hacks . | . . . Recycling Unit Hacks . | . . . Scanalyzer . | . . . Garrison Access Hacks . | . . . Unauthorized Hacks . | . . . Terminals . | . . . Fabricators . | . . . Repair Stations . | . . . Recycling Units . | . . . Scanalyzers . | . . . Garrison Access . | . . . Data Cores Recovered . | . . . Used . | . . . Hacking Detections . | . . . Full Trace Events . | . . . Feedback Events . | . . . Feedback Blocked . | . . . Robot Schematics Acquired . | . . . Robots Built . | . . . Authchips . | . . . Time . | . . . Total Robot Build Rating . | . . . Part Schematics Acquired . | . . . Parts Built . | . . . Authchips . | . . . Time . | . . . Total Part Build Rating . | . . . Parts Repaired . | . . . Time . | . . . Parts Recycled . | . . . Recycled Matter . | . . . Retrieved Matter . | . . . Retrieved Components . | . . . Parts Scanalyzed . | . . . Part Schematics Acquired . | . . . Parts Damaged . | . . . Bothacking | -11 -10 -10 ------------ Run | Yrd Mat Min Used RIF Installer . | . . . Robots Hacked . | . . . Non-combat . | . . . Combat . | . . . Robot Hacks Applied . | . . . Relay Couplers Released . | . . . Fabnet Peak Effective % . | . . . Robots Rewired . | . . . Allies Hacked . | . . . Hacks Repelled . | . . . Allies | -11 -10 -10 -------- Run | Yrd Mat Min Total Allies 3 | . . 3 Largest Group 3 | . . 3 Highest-Rated Group 40 | . . 40 Highest-Rated Ally 16 | . . 16 Total Orders . | . . . Ally Attacks 2 | . . 2 Total Damage 30 | . . 30 Kills . | . . . Allies Corrupted . | . . . Allies Melted . | . . . Intel | -11 -10 -10 ------- Run | Yrd Mat Min Robot Analysis Total . | . . . Derelict Logs Recovered . | . . . Drone Launches . | . . . Drone Recoveries . | . . . Exploration | -11 -10 -10 ------------- Run | Yrd Mat Min Turns Passed 379 | 112 215 52 Spaces Moved 276 | 74 173 29 Core 2 | 1 . 1 Treads . | . . . Legs . | . . . Wheels 274 | 73 173 28 Hover . | . . . Flight . | . . . Fastest Speed 50 | 50 100 115 Average Speed 110 | 99 110 135 Slowest Speed 700 | 100 115 700 Overloaded Moves . | . . . Propulsion Burnouts . | . . . Robots Hopped . | . . . Cave-ins Triggered . | . . . Exploration Rate (%) 17 | 5 34 13 Regions Visited 2 Branch Regions 1 Pre-discovered Areas 1 | . . 1 Known Exits Taken . | . . . Unknown Exits Taken 2 | 1 1 . Scrap Searched . | . . . Spaces Dug . | . . . Terrain Destroyed 8 | . . 8 Melee . | . . . Projectile . | . . . AOE 8 | . . 8 Terrain Rammed . | . . . Walls Destroyed . | . . . Machines Disabled . | . . . Actions | -11 -10 -10 --------- Run | Yrd Mat Min Total 327 | 95 193 39 Wait 8 | . 8 . Move 274 | 73 172 29 Hop . | . . . Pick Up 13 | 6 7 . Fast Attach 7 | 7 . . Attach 3 | 1 . 2 Detach 1 | 1 . . Swap 3 | . 2 1 Drop 1 | . 1 . Fire 17 | 7 3 7 Melee . | . . . Ram . | . . . Kick . | . . . Crush . | . . . Escape Stasis . | . . . Rewire . | . . . Trap . | . . . Miscellaneous . | . . . Route ------- -11/Scrapyard -10/Materials -10/Mines History --------- Turn | Location | Event 31 | -11/Scrapyard | Discovered new exit (range 15) 113 | -11/Scrapyard | Entered Materials 296 | -10/Materials | Discovered new exit (range 14) 301 | -10/Materials | Build established: Mutant 328 | -10/Materials | Entered Mines 329 | -10/Mines | Assembled infested the area 332 | -10/Mines | Assisted by bots powering up and referring to "LRC-V3" 334 | -10/Mines | Assisted by a Guerilla fighting off Assembled 361 | -10/Mines | Learned location of Storage (-9) 377 | -10/Mines | Core integrity fell below 50% 380 | -10/Mines | Destroyed by D-53 Grenadier with Mini Grenade Launcher Last Messages --------------- 00369_ The unstable cave ceiling collapses. 00370_ Com. Wheel destroyed. 00370_ R-06 Scavenger destroyed. 00370_ Grenade Launcher destroyed. 00370_ Destroyed Grenade Launcher. 00372_ The unstable cave ceiling collapses. 00372_ Spread Laser destroyed. 00373_ The unstable cave ceiling collapses. 00374_ Lgt. Ion Engine destroyed. 00375_ The unstable cave ceiling collapses. 00376_ EM Pulse Gun destroyed. 00376_ D-53 Grenadier knocked back. 00377_ The unstable cave ceiling collapses. 00378_ Com. Wheel destroyed. 00378_ U-05 Engineer lays Concrete. 00378_ Seismic Detector destroyed. 00378_ Wheel destroyed. 00379_ The unstable cave ceiling collapses. 00379_ U-05 Engineer lays Concrete. 00380_ U-05 Engineer builds a Wall. Map ----- +----------------------------------------------------+ | ?????????????????????????????????????????????????? | | ?????????????????????????????????????????????????? | | ?????????????????????????????????????????????????? | | ?????????????????????????????????????????????????? | | ?????????????????????????????????????????????????? | | ?????????????????????????????????????????????????? | | ?????????????????????????????????????????????????? | | ?????????????????????????????????????????????????? | | ?????????????????????????????????????????????????? | | ?????????????????????????????????????????????????? | | ?????????????????????????????????????????????????? | | ?????????????????????????????????????????????????? | | ?????????????????????????????????????????????????? | | ?????????????????????????????????????????????????? | | ?????????????????????????????????????????????????? | | ?????????????????????????????????????????????????? | | ???????########??????????????????????????????????? | | ????#### #??????????????????????????????????? | | ????# #??????????????????????????????????? | | ????# #######?####???????????????????????? | | ????# ### ##????##????????????????? | | ????#### ##### ## #### # #??????????????? | | ???????# #???# ## ? ##???????????? | | ???????########???# # # #???????????? | | ??????????????????# #????????????? | | ??????????????????# @ #???????????? | | ??????????????????# #?????????? | | ??????????????????#= = # #????????? | | ??????????????????#[ ! ?????????? | | ??????????????????### d ## ?????????? | | ???????????????????# = #??????????????? | | ???????????????????## !%a ##??????????????? | | ????????????????????## =d #??????????????? | | ????????????????????## #??????????????? | | ?????????????????????## ### ###??????????????? | | ??????????????????????# ??? ???????????????? | | ??????????????????????# ??? ??????????????? | | ??????????????????????# ??? # ##?????????????? | | ?????????????????????? ???####u# ???????????????? | | ??????????????????????# ?????????? ??????????????? | | ??????????????????????? ?????????????????????????? | | ??????????????????????? ?????????????????????????? | | ?????????????????????????????????????????????????? | | ?????????????????????????????????????????????????? | | ?????????????????????????????????????????????????? | | ?????????????????????????????????????????????????? | | ?????????????????????????????????????????????????? | | ?????????????????????????????????????????????????? | | ?????????????????????????????????????????????????? | | ?????????????????????????????????????????????????? | +----------------------------------------------------+ Best States ------------- Heat Dissipation 25 Energy Generation 10 Energy Capacity 125 Matter Stores 300 Matter Capacity 300 Sight Range 16 Terrain Scan Range 16 Terrain Scan Density 10 Evasion (%) 40 Item Schematics ----------------- None Robot Schematics ------------------ None Fabricated ------------ Nothing Alien Tech Used ----------------- None Achievements -------------- None Challenges ------------ None Game ------ Seed ProcessingMicroStreamer Manual? 0 Play Time 00:06:24 Cumulative 5.9 hours Start 2024.04.04 @ 21:50:01 End 2024.04.04 @ 21:54:45 Sessions 1 Manual Loads 0 Difficulty Rogue Special Mode None Game No. 7 Rogue 7 Adventurer 0 Explorer 0 Win Type - Total 0 Types 0/0/0/0/0/0/0/0/0 Lore% 9 Gallery% 14 Achievement% 17 Wizard Run 0 Options --------- Layout 0 ASCII 0 Keyboard 1 Movement Numpad Keybinds 1 Fullscreen 1 Font 18/X11 Map View 76x50 Zoom Use 0% Tactical HUD 1 Map Filters NONE Filters NONE Steam 1 RUN: 5651da83-0318-4229-9431-6dc04a9ff192